[Event "*** Titled Tuesday Blitz"]
[Site "Chess.com"]
[Date "2020.04.07"]
[Round "3"]
[White "grzechu96"]
[Black "Angel_Hranitel_37"]
[Result "0-1"]
[WhiteElo "2583"]
[BlackElo "2343"]
[TimeControl "180+1"]
[EndTime "13:31:29 PDT"]
[Termination "Angel_Hranitel_37 won by checkmate"]

1. e4 {[%clk 0:03:00.9]} 1... c5 {[%clk 0:02:57.5]} 2. Nf3 {[%clk 0:03:01]} 2...
e6 {[%clk 0:02:56.7]} 3. d4 {[%clk 0:03:01]} 3... cxd4 {[%clk 0:02:56.6]} 4.
Nxd4 {[%clk 0:03:01.9]} 4... Nf6 {[%clk 0:02:57.2]} 5. Nc3 {[%clk 0:03:01.8]}
5... Nc6 {[%clk 0:02:57.4]} 6. a3 {[%clk 0:02:56.2]} 6... Be7 {[%clk 0:02:56.2]}
7. Be2 {[%clk 0:02:54.4]} 7... O-O {[%clk 0:02:52.7]} 8. Be3 {[%clk 0:02:31.3]}
8... d5 {[%clk 0:02:52.5]} 9. exd5 {[%clk 0:02:31.4]} 9... Nxd5 {[%clk
0:02:53.4]} 10. Nxd5 {[%clk 0:02:31.8]} 10... Qxd5 {[%clk 0:02:53.5]} 11. Bf3
{[%clk 0:02:32]} 11... Qa5+ {[%clk 0:02:53.8]} 12. Bd2 {[%clk 0:02:30.8]} 12...
Qe5+ {[%clk 0:02:49]} 13. Be3 {[%clk 0:02:05.3]} 13... Rd8 {[%clk 0:01:47.6]}
14. c3 {[%clk 0:02:04.7]} 14... Nxd4 {[%clk 0:01:46.2]} 15. cxd4 {[%clk
0:02:05.6]} 15... Qa5+ {[%clk 0:01:46.7]} 16. b4 {[%clk 0:02:05.6]} 16... Qb5
{[%clk 0:01:35.8]} 17. Qe2 {[%clk 0:02:03.5]} 17... Qa4 {[%clk 0:01:21.7]} 18.
O-O {[%clk 0:02:01.7]} 18... Bd7 {[%clk 0:01:21.9]} 19. Bxb7 {[%clk 0:02:00.8]}
19... Rab8 {[%clk 0:01:15.4]} 20. Ba6 {[%clk 0:02:00.4]} 20... Rb6 {[%clk
0:01:10.5]} 21. Bd3 {[%clk 0:01:59.8]} 21... Rd6 {[%clk 0:01:06.5]} 22. Rfd1
{[%clk 0:01:47.3]} 22... Bf6 {[%clk 0:01:06.2]} 23. h3 {[%clk 0:01:14.2]} 23...
Bc6 {[%clk 0:01:05.3]} 24. Qg4 {[%clk 0:01:03.6]} 24... g6 {[%clk 0:00:48.8]}
25. Be2 {[%clk 0:00:55.3]} 25... Qc2 {[%clk 0:00:29.1]} 26. Rac1 {[%clk
0:00:52.2]} 26... Qb2 {[%clk 0:00:27.7]} 27. Bf4 {[%clk 0:00:39.7]} 27... h5
{[%clk 0:00:13.8]} 28. Qg3 {[%clk 0:00:39.6]} 28... Rxd4 {[%clk 0:00:13.6]} 29.
Rxd4 {[%clk 0:00:34.2]} 29... Rxd4 {[%clk 0:00:14]} 30. Bxh5 {[%clk 0:00:26.4]}
30... Bh4 {[%clk 0:00:07.9]} 31. Qe3 {[%clk 0:00:20.5]} 31... Rxf4 {[%clk
0:00:04.6]} 32. Qxf4 {[%clk 0:00:20.5]} 32... Bxf2+ {[%clk 0:00:05.1]} 33. Kh2
{[%clk 0:00:20.6]} 33... Bd4 {[%clk 0:00:04.7]} 34. Qg5 {[%clk 0:00:14.6]} 34...
Be5+ {[%clk 0:00:04]} 35. Kh1 {[%clk 0:00:14.1]} 35... Bxg2+ {[%clk 0:00:03.8]}
36. Qxg2 {[%clk 0:00:13.6]} 36... Qxc1+ {[%clk 0:00:04.1]} 37. Qg1 {[%clk
0:00:14.2]} 37... Qxa3 {[%clk 0:00:04.1]} 38. Bg4 {[%clk 0:00:08.1]} 38... Qxb4
{[%clk 0:00:03.7]} 39. Qxa7 {[%clk 0:00:07.8]} 39... Qf4 {[%clk 0:00:03.6]} 40.
Qa8+ {[%clk 0:00:07]} 40... Kg7 {[%clk 0:00:04]} 41. Qg2 {[%clk 0:00:06.6]}
41... f5 {[%clk 0:00:04.4]} 42. Be2 {[%clk 0:00:06.2]} 42... Qc1+ {[%clk
0:00:04.3]} 43. Bf1 {[%clk 0:00:06.5]} 43... Kf6 {[%clk 0:00:04.1]} 44. Qf3
{[%clk 0:00:06.9]} 44... Qg5 {[%clk 0:00:04.2]} 45. Bg2 {[%clk 0:00:05.5]} 45...
Qh4 {[%clk 0:00:04.4]} 46. Bf1 {[%clk 0:00:05.6]} 46... Qe1 {[%clk 0:00:04.6]}
47. Kg2 {[%clk 0:00:04.7]} 47... g5 {[%clk 0:00:05.1]} 48. Kh1 {[%clk
0:00:04.7]} 48... Qc1 {[%clk 0:00:03.8]} 49. Qg2 {[%clk 0:00:03.1]} 49... Qf4
{[%clk 0:00:03.8]} 50. Be2 {[%clk 0:00:01.8]} 50... Qe3 {[%clk 0:00:03.1]} 51.
Bf1 {[%clk 0:00:02.7]} 51... Qf4 {[%clk 0:00:03.1]} 52. Be2 {[%clk 0:00:02.7]}
52... Bd6 {[%clk 0:00:03.6]} 53. Bf1 {[%clk 0:00:03.2]} 53... e5 {[%clk
0:00:04.2]} 54. Bc4 {[%clk 0:00:03.3]} 54... e4 {[%clk 0:00:04.4]} 55. Qb2+
{[%clk 0:00:03]} 55... Be5 {[%clk 0:00:03.4]} 56. Qb6+ {[%clk 0:00:03.4]} 56...
Bd6 {[%clk 0:00:04]} 57. Qd4+ {[%clk 0:00:03.3]} 57... Kg6 {[%clk 0:00:04.6]}
58. Bd5 {[%clk 0:00:02.8]} 58... Qh2# {[%clk 0:00:04.5]} 0-1

[Event "*** Titled Tuesday Blitz"]
[Site "Chess.com"]
[Date "2020.04.07"]
[Round "3"]
[White "gmkomarov"]
[Black "HiHaruka"]
[Result "0-1"]
[WhiteElo "2485"]
[BlackElo "2281"]
[TimeControl "180+1"]
[EndTime "13:31:31 PDT"]
[Termination "HiHaruka won on time"]

1. e4 {[%clk 0:03:00.9]} 1... c5 {[%clk 0:02:58.3]} 2. Nf3 {[%clk 0:03:00.6]}
2... d6 {[%clk 0:02:57.7]} 3. d4 {[%clk 0:03:00.6]} 3... cxd4 {[%clk 0:02:58.1]}
4. Nxd4 {[%clk 0:03:00.6]} 4... Nf6 {[%clk 0:02:58.4]} 5. Nc3 {[%clk 0:02:59.9]}
5... a6 {[%clk 0:02:57.3]} 6. h3 {[%clk 0:02:57.3]} 6... e5 {[%clk 0:02:52.4]}
7. Nde2 {[%clk 0:02:56.7]} 7... Be7 {[%clk 0:02:50.9]} 8. g4 {[%clk 0:02:56.5]}
8... h6 {[%clk 0:02:46.1]} 9. Bg2 {[%clk 0:02:56.1]} 9... b5 {[%clk 0:02:35.1]}
10. O-O {[%clk 0:02:52.7]} 10... Bb7 {[%clk 0:02:22.4]} 11. Ng3 {[%clk
0:02:51.1]} 11... O-O {[%clk 0:02:10.7]} 12. Nf5 {[%clk 0:02:50.6]} 12... Re8
{[%clk 0:02:08.2]} 13. Be3 {[%clk 0:02:34.4]} 13... Bf8 {[%clk 0:02:05.6]} 14.
Qd2 {[%clk 0:02:32.9]} 14... Qc7 {[%clk 0:01:22.2]} 15. Rad1 {[%clk 0:02:27.4]}
15... Rd8 {[%clk 0:01:18.9]} 16. g5 {[%clk 0:02:26.4]} 16... hxg5 {[%clk
0:01:17]} 17. Bxg5 {[%clk 0:02:26.3]} 17... Nbd7 {[%clk 0:01:03.1]} 18. Nd5
{[%clk 0:02:02.5]} 18... Bxd5 {[%clk 0:00:38.9]} 19. exd5 {[%clk 0:02:02.7]}
19... Rdc8 {[%clk 0:00:37.6]} 20. c3 {[%clk 0:02:01.5]} 20... Qc4 {[%clk
0:00:35.3]} 21. Kh1 {[%clk 0:01:57.2]} 21... Ne4 {[%clk 0:00:23.7]} 22. Qe3
{[%clk 0:01:56.4]} 22... Nxg5 {[%clk 0:00:22]} 23. Qxg5 {[%clk 0:01:55.8]} 23...
Qf4 {[%clk 0:00:19.8]} 24. Nh6+ {[%clk 0:01:50.2]} 24... Kh7 {[%clk 0:00:18.4]}
25. Qxf4 {[%clk 0:01:37.1]} 25... exf4 {[%clk 0:00:19.3]} 26. Nf5 {[%clk
0:01:11.9]} 26... g6 {[%clk 0:00:17.3]} 27. Nd4 {[%clk 0:01:11.4]} 27... Bg7
{[%clk 0:00:17.2]} 28. Nc6 {[%clk 0:01:11.1]} 28... Ne5 {[%clk 0:00:16.9]} 29.
Rfe1 {[%clk 0:00:59.8]} 29... Re8 {[%clk 0:00:14.5]} 30. Be4 {[%clk 0:00:54.6]}
30... f5 {[%clk 0:00:13.8]} 31. Bc2 {[%clk 0:00:53.8]} 31... Kh6 {[%clk
0:00:07.5]} 32. Nd4 {[%clk 0:00:49.5]} 32... Nc4 {[%clk 0:00:06.2]} 33. Ne6
{[%clk 0:00:46.3]} 33... Be5 {[%clk 0:00:05.7]} 34. b3 {[%clk 0:00:45.1]} 34...
Nb6 {[%clk 0:00:05.7]} 35. Kg2 {[%clk 0:00:36.2]} 35... Rac8 {[%clk 0:00:05.4]}
36. Rd3 {[%clk 0:00:30.5]} 36... Nxd5 {[%clk 0:00:05.2]} 37. Rxd5 {[%clk
0:00:29.5]} 37... Rxe6 {[%clk 0:00:05.3]} 38. Bd1 {[%clk 0:00:24.7]} 38... Rf6
{[%clk 0:00:04.4]} 39. Bf3 {[%clk 0:00:21.9]} 39... Rxc3 {[%clk 0:00:03.8]} 40.
Re2 {[%clk 0:00:20.5]} 40... Rf8 {[%clk 0:00:01.9]} 41. h4 {[%clk 0:00:19.7]}
41... Rfc8 {[%clk 0:00:02.6]} 42. Red2 {[%clk 0:00:17.1]} 42... Rc2 {[%clk
0:00:02.8]} 43. Be2 {[%clk 0:00:17.1]} 43... Rxd2 {[%clk 0:00:03.1]} 44. Rxd2
{[%clk 0:00:16.3]} 44... Rc3 {[%clk 0:00:04]} 45. Bf3 {[%clk 0:00:15.8]} 45...
Rc1 {[%clk 0:00:03.7]} 46. Bd5 {[%clk 0:00:15.3]} 46... Rc3 {[%clk 0:00:02.8]}
47. Bf3 {[%clk 0:00:13]} 47... Kg7 {[%clk 0:00:03]} 48. Bb7 {[%clk 0:00:11.8]}
48... Kh6 {[%clk 0:00:03.2]} 49. Bxa6 {[%clk 0:00:11.5]} 49... Kh5 {[%clk
0:00:03.6]} 50. Bxb5 {[%clk 0:00:11]} 50... Kxh4 {[%clk 0:00:03.8]} 51. Be2
{[%clk 0:00:10.4]} 51... g5 {[%clk 0:00:03.6]} 52. Rd3 {[%clk 0:00:10.5]} 52...
Rxd3 {[%clk 0:00:02.8]} 53. Bxd3 {[%clk 0:00:10]} 53... g4 {[%clk 0:00:03.7]}
54. Bxf5 {[%clk 0:00:09.3]} 54... f3+ {[%clk 0:00:03.8]} 55. Kf1 {[%clk
0:00:09.3]} 55... d5 {[%clk 0:00:02.1]} 56. b4 {[%clk 0:00:09.3]} 56... d4
{[%clk 0:00:02.2]} 57. b5 {[%clk 0:00:09.3]} 57... Bc7 {[%clk 0:00:01.5]} 58. a4
{[%clk 0:00:09.3]} 58... Ba5 {[%clk 0:00:01.9]} 59. Bd3 {[%clk 0:00:08.2]} 59...
Kg5 {[%clk 0:00:02]} 60. Bc2 {[%clk 0:00:06.8]} 60... Kf4 {[%clk 0:00:02.3]} 61.
Bd3 {[%clk 0:00:06.8]} 61... Ke5 {[%clk 0:00:02.5]} 62. Bc4 {[%clk 0:00:06.2]}
62... Ke4 {[%clk 0:00:02.5]} 63. Ba2 {[%clk 0:00:01.5]} 63... d3 {[%clk
0:00:02.7]} 64. Bb1 {[%clk 0:00:01.4]} 64... Kd4 {[%clk 0:00:03.1]} 65. Kg1
{[%clk 0:00:01.4]} 65... d2 {[%clk 0:00:01.7]} 66. Bc2 {[%clk 0:00:01.1]} 66...
Kc3 {[%clk 0:00:02.4]} 67. Bd1 {[%clk 0:00:01.1]} 67... Kb2 {[%clk 0:00:03]} 0-1

[Event "*** Titled Tuesday Blitz"]
[Site "Chess.com"]
[Date "2020.04.07"]
[Round "3"]
[White "UmutErdemGunduz"]
[Black "Ellaijio_B"]
[Result "1-0"]
[WhiteElo "2418"]
[BlackElo "2608"]
[TimeControl "180+1"]
[EndTime "13:31:43 PDT"]
[Termination "UmutErdemGunduz won on time"]

1. e4 {[%clk 0:03:00.9]} 1... c5 {[%clk 0:02:59.7]} 2. Nf3 {[%clk 0:03:00.5]}
2... e6 {[%clk 0:03:00]} 3. d4 {[%clk 0:03:00]} 3... cxd4 {[%clk 0:03:00.9]} 4.
Nxd4 {[%clk 0:03:00.7]} 4... a6 {[%clk 0:03:01.3]} 5. c4 {[%clk 0:03:00.9]} 5...
Qc7 {[%clk 0:03:01]} 6. Nc3 {[%clk 0:03:01.3]} 6... Nf6 {[%clk 0:03:01.2]} 7.
Be3 {[%clk 0:02:58.5]} 7... d6 {[%clk 0:02:57.6]} 8. f3 {[%clk 0:02:57.9]} 8...
Be7 {[%clk 0:02:57.1]} 9. Qd2 {[%clk 0:02:57.8]} 9... O-O {[%clk 0:02:56.8]} 10.
Be2 {[%clk 0:02:58.4]} 10... b6 {[%clk 0:02:54.9]} 11. O-O {[%clk 0:02:58.9]}
11... Bb7 {[%clk 0:02:54.8]} 12. Rfc1 {[%clk 0:02:58.5]} 12... Nbd7 {[%clk
0:02:55.1]} 13. a4 {[%clk 0:02:58.6]} 13... Rab8 {[%clk 0:02:54.9]} 14. a5
{[%clk 0:02:59]} 14... bxa5 {[%clk 0:02:55.8]} 15. Kh1 {[%clk 0:02:32.3]} 15...
Rfc8 {[%clk 0:02:52.7]} 16. Bg1 {[%clk 0:02:06.8]} 16... Nc5 {[%clk 0:02:52.8]}
17. Ra3 {[%clk 0:01:57.6]} 17... h6 {[%clk 0:02:51.6]} 18. Rca1 {[%clk
0:01:57.4]} 18... Nh5 {[%clk 0:02:49]} 19. Be3 {[%clk 0:01:52.8]} 19... Nf6
{[%clk 0:02:47.5]} 20. Rxa5 {[%clk 0:01:52]} 20... e5 {[%clk 0:02:43.4]} 21.
Rxc5 {[%clk 0:01:40]} 21... dxc5 {[%clk 0:02:39.7]} 22. Nf5 {[%clk 0:01:40]}
22... Rd8 {[%clk 0:02:35.7]} 23. Nd5 {[%clk 0:01:37.3]} 23... Nxd5 {[%clk
0:02:26.9]} 24. cxd5 {[%clk 0:01:35.1]} 24... Bf8 {[%clk 0:02:26.5]} 25. Bc4
{[%clk 0:01:29.7]} 25... Bc8 {[%clk 0:02:22.4]} 26. Ng3 {[%clk 0:01:25.2]} 26...
Rb4 {[%clk 0:02:20.4]} 27. b3 {[%clk 0:01:24.9]} 27... a5 {[%clk 0:02:18.7]} 28.
Ne2 {[%clk 0:01:22.5]} 28... Bd7 {[%clk 0:02:15.9]} 29. Nc3 {[%clk 0:01:22]}
29... Rdb8 {[%clk 0:02:14.1]} 30. Qd3 {[%clk 0:01:15.6]} 30... a4 {[%clk
0:02:07]} 31. bxa4 {[%clk 0:01:12.1]} 31... Qa5 {[%clk 0:02:04.5]} 32. Bd2
{[%clk 0:01:01.5]} 32... Rb2 {[%clk 0:01:56.7]} 33. Be1 {[%clk 0:00:52.6]} 33...
Qd8 {[%clk 0:01:49.5]} 34. a5 {[%clk 0:00:42.8]} 34... Qg5 {[%clk 0:01:49]} 35.
Ne2 {[%clk 0:00:33.4]} 35... Bb5 {[%clk 0:01:34.1]} 36. Bxb5 {[%clk 0:00:33.4]}
36... R8xb5 {[%clk 0:01:33.1]} 37. a6 {[%clk 0:00:30]} 37... c4 {[%clk
0:01:33.3]} 38. Qd1 {[%clk 0:00:30]} 38... Rb8 {[%clk 0:01:18.2]} 39. a7 {[%clk
0:00:29.8]} 39... Ra8 {[%clk 0:01:18.3]} 40. Bc3 {[%clk 0:00:21.2]} 40... Rb7
{[%clk 0:01:14.3]} 41. f4 {[%clk 0:00:17.6]} 41... exf4 {[%clk 0:01:10.8]} 42.
Bd4 {[%clk 0:00:18.1]} 42... Qe7 {[%clk 0:01:01.8]} 43. Qc2 {[%clk 0:00:17.8]}
43... Rbxa7 {[%clk 0:01:00.4]} 44. Bxa7 {[%clk 0:00:17.6]} 44... Rxa7 {[%clk
0:01:01.3]} 45. Rxa7 {[%clk 0:00:14.9]} 45... Qxa7 {[%clk 0:01:02.2]} 46. Qxc4
{[%clk 0:00:14.2]} 46... Bc5 {[%clk 0:01:00.7]} 47. Qc1 {[%clk 0:00:08.9]} 47...
g5 {[%clk 0:00:59.8]} 48. e5 {[%clk 0:00:06.8]} 48... Be3 {[%clk 0:00:59.4]} 49.
Qd1 {[%clk 0:00:05.5]} 49... Qb7 {[%clk 0:00:55]} 50. h3 {[%clk 0:00:03]} 50...
Kf8 {[%clk 0:00:50.8]} 51. Nc3 {[%clk 0:00:02.9]} 51... Qb4 {[%clk 0:00:31.9]}
52. d6 {[%clk 0:00:02.7]} 52... Qxc3 {[%clk 0:00:26.1]} 53. d7 {[%clk
0:00:02.7]} 53... Bb6 {[%clk 0:00:26.6]} 54. d8=Q+ {[%clk 0:00:03.2]} 54... Bxd8
{[%clk 0:00:26.8]} 55. Qxd8+ {[%clk 0:00:04.1]} 55... Kg7 {[%clk 0:00:27.7]} 56.
Qf6+ {[%clk 0:00:05]} 56... Kg8 {[%clk 0:00:27.1]} 57. Qd8+ {[%clk 0:00:04.9]}
57... Kh7 {[%clk 0:00:27]} 58. Qf6 {[%clk 0:00:05.4]} 58... Qc4 {[%clk
0:00:18.4]} 59. Qf5+ {[%clk 0:00:04.5]} 59... Kg8 {[%clk 0:00:18.3]} 60. Qf6
{[%clk 0:00:04.3]} 60... Qe6 {[%clk 0:00:17]} 61. Qd8+ {[%clk 0:00:02.2]} 61...
Kg7 {[%clk 0:00:17]} 62. Qd4 {[%clk 0:00:03.1]} 62... Kg6 {[%clk 0:00:14.2]} 63.
Qe4+ {[%clk 0:00:03.1]} 63... f5 {[%clk 0:00:13.9]} 64. Qd4 {[%clk 0:00:03.3]}
64... h5 {[%clk 0:00:10.9]} 65. Kg1 {[%clk 0:00:03.5]} 65... Qc6 {[%clk
0:00:07.3]} 66. h4 {[%clk 0:00:03.5]} 66... gxh4 {[%clk 0:00:06.2]} 67. Qxf4
{[%clk 0:00:03.6]} 67... Qc5+ {[%clk 0:00:06.4]} 68. Kh2 {[%clk 0:00:03.6]}
68... h3 {[%clk 0:00:06.2]} 69. Kxh3 {[%clk 0:00:03.7]} 69... Qc2 {[%clk
0:00:05]} 70. Kh2 {[%clk 0:00:02.3]} 70... Kf7 {[%clk 0:00:04.6]} 71. Qg5 {[%clk
0:00:01.6]} 71... Qe2 {[%clk 0:00:03.1]} 72. Qxf5+ {[%clk 0:00:01.7]} 72... Ke8
{[%clk 0:00:03.6]} 73. Qf6 {[%clk 0:00:02.4]} 73... h4 {[%clk 0:00:01.7]} 74. e6
{[%clk 0:00:03]} 74... Qh5 {[%clk 0:00:01.7]} 75. e7 {[%clk 0:00:02.1]} 1-0

[Event "*** Titled Tuesday Blitz"]
[Site "Chess.com"]
[Date "2020.04.07"]
[Round "3"]
[White "Oneofmyturns"]
[Black "varacalli"]
[Result "1-0"]
[WhiteElo "2606"]
[BlackElo "2375"]
[TimeControl "180+1"]
[EndTime "13:32:00 PDT"]
[Termination "Oneofmyturns won by resignation"]

1. d4 {[%clk 0:03:00.9]} 1... Nf6 {[%clk 0:02:59.9]} 2. c4 {[%clk 0:03:01.1]}
2... g6 {[%clk 0:02:59.7]} 3. Nc3 {[%clk 0:03:01.2]} 3... Bg7 {[%clk 0:02:59.9]}
4. e4 {[%clk 0:03:01.2]} 4... d6 {[%clk 0:03:00.2]} 5. h3 {[%clk 0:03:01.8]}
5... c6 {[%clk 0:02:58.2]} 6. Be3 {[%clk 0:03:00.8]} 6... a6 {[%clk 0:02:58.5]}
7. a4 {[%clk 0:02:54.9]} 7... a5 {[%clk 0:02:58.2]} 8. g4 {[%clk 0:02:51.4]}
8... Na6 {[%clk 0:02:57.9]} 9. Bg2 {[%clk 0:02:51.7]} 9... Nd7 {[%clk 0:02:55]}
10. Nge2 {[%clk 0:02:51.6]} 10... e5 {[%clk 0:02:52]} 11. d5 {[%clk 0:02:48.1]}
11... Ndc5 {[%clk 0:02:51.5]} 12. Ng3 {[%clk 0:02:47]} 12... Nb4 {[%clk
0:02:49.8]} 13. O-O {[%clk 0:02:44.6]} 13... Ncd3 {[%clk 0:02:36.4]} 14. Qd2
{[%clk 0:02:40.9]} 14... c5 {[%clk 0:02:33.5]} 15. Nb5 {[%clk 0:02:28.3]} 15...
O-O {[%clk 0:02:30.8]} 16. Rfb1 {[%clk 0:01:55.1]} 16... Qe7 {[%clk 0:02:23.7]}
17. Ra3 {[%clk 0:01:48.4]} 17... Nf4 {[%clk 0:02:21.5]} 18. Bxf4 {[%clk
0:01:48.6]} 18... exf4 {[%clk 0:02:22.4]} 19. Qxf4 {[%clk 0:01:48.6]} 19... Be5
{[%clk 0:02:17.2]} 20. Qd2 {[%clk 0:01:49]} 20... g5 {[%clk 0:02:04.9]} 21. Rf3
{[%clk 0:01:41]} 21... f6 {[%clk 0:01:57.4]} 22. Nc3 {[%clk 0:01:29.7]} 22...
Bd7 {[%clk 0:01:52.3]} 23. b3 {[%clk 0:01:29.5]} 23... Rae8 {[%clk 0:01:50.2]}
24. Nd1 {[%clk 0:01:29.9]} 24... Bf4 {[%clk 0:01:45.5]} 25. Ne3 {[%clk
0:01:22.5]} 25... Qf7 {[%clk 0:01:34.8]} 26. Qe2 {[%clk 0:01:18.5]} 26... Qg6
{[%clk 0:01:33]} 27. Nef5 {[%clk 0:01:08.2]} 27... Bxf5 {[%clk 0:01:25.4]} 28.
Nxf5 {[%clk 0:00:49.7]} 28... Be5 {[%clk 0:01:15.8]} 29. Re3 {[%clk 0:00:49.9]}
29... Na6 {[%clk 0:01:10.3]} 30. Rd3 {[%clk 0:00:47.4]} 30... b6 {[%clk
0:01:09.2]} 31. Rf1 {[%clk 0:00:42.9]} 31... Nb8 {[%clk 0:01:01.4]} 32. Qd1
{[%clk 0:00:43]} 32... Nd7 {[%clk 0:01:00.2]} 33. Rf3 {[%clk 0:00:42.3]} 33...
h5 {[%clk 0:00:52.5]} 34. Rd3 {[%clk 0:00:29.3]} 34... h4 {[%clk 0:00:51.2]} 35.
Re1 {[%clk 0:00:25.8]} 35... Rf7 {[%clk 0:00:47.6]} 36. Qc2 {[%clk 0:00:25.1]}
36... Nf8 {[%clk 0:00:47.1]} 37. Bf3 {[%clk 0:00:21.3]} 37... Rd7 {[%clk
0:00:46.1]} 38. Ne3 {[%clk 0:00:21.6]} 38... Qh7 {[%clk 0:00:45.6]} 39. Ng2
{[%clk 0:00:21.9]} 39... Ng6 {[%clk 0:00:45.6]} 40. Bd1 {[%clk 0:00:22.2]} 40...
Nf4 {[%clk 0:00:45.5]} 41. Nxf4 {[%clk 0:00:22.6]} 41... Bxf4 {[%clk 0:00:46.4]}
42. Rf3 {[%clk 0:00:22.3]} 42... Qe7 {[%clk 0:00:46.3]} 43. Qd3 {[%clk
0:00:17.8]} 43... Qe5 {[%clk 0:00:46.2]} 44. Bc2 {[%clk 0:00:18.3]} 44... Rde7
{[%clk 0:00:46]} 45. Kg2 {[%clk 0:00:18.8]} 45... Kg7 {[%clk 0:00:46.3]} 46. Re2
{[%clk 0:00:19.4]} 46... Rf7 {[%clk 0:00:44.2]} 47. Qd1 {[%clk 0:00:19.9]} 47...
Rg8 {[%clk 0:00:44.2]} 48. Rd3 {[%clk 0:00:20.5]} 48... Kh6 {[%clk 0:00:41.8]}
49. Bb1 {[%clk 0:00:21]} 49... Rgg7 {[%clk 0:00:41.8]} 50. Rc2 {[%clk
0:00:21.5]} 50... Qe7 {[%clk 0:00:41.5]} 51. Qe2 {[%clk 0:00:18.8]} 51... Be5
{[%clk 0:00:41.8]} 52. Rf3 {[%clk 0:00:19]} 52... Bf4 {[%clk 0:00:41.3]} 53.
Rcc3 {[%clk 0:00:17.3]} 53... Qe5 {[%clk 0:00:41.6]} 54. Rcd3 {[%clk 0:00:17.5]}
54... Kh7 {[%clk 0:00:41.9]} 55. Bc2 {[%clk 0:00:17.6]} 55... Re7 {[%clk
0:00:42]} 56. Rc3 {[%clk 0:00:17.5]} 56... Rg8 {[%clk 0:00:41.5]} 57. Bb1 {[%clk
0:00:18.1]} 57... Rge8 {[%clk 0:00:41.7]} 58. Qc2 {[%clk 0:00:18.6]} 58... Kg7
{[%clk 0:00:42]} 59. Rxf4 {[%clk 0:00:18]} 59... gxf4 {[%clk 0:00:38.4]} 60. Rf3
{[%clk 0:00:18.3]} 60... Kf8 {[%clk 0:00:37]} 61. Qd2 {[%clk 0:00:18.2]} 61...
Qg5 {[%clk 0:00:36.5]} 62. Rxf4 {[%clk 0:00:17.6]} 62... Re5 {[%clk 0:00:35.4]}
63. Qe3 {[%clk 0:00:16.2]} 63... Ke7 {[%clk 0:00:34.1]} 64. Qf3 {[%clk
0:00:16.8]} 64... Rf8 {[%clk 0:00:33.5]} 65. Kf1 {[%clk 0:00:16.9]} 65... Kd7
{[%clk 0:00:31.4]} 66. Ke2 {[%clk 0:00:17.3]} 66... Rf7 {[%clk 0:00:31.4]} 67.
Bc2 {[%clk 0:00:17.7]} 67... Rfe7 {[%clk 0:00:30.5]} 68. Kd1 {[%clk 0:00:18.3]}
68... f5 {[%clk 0:00:27]} 69. Rxf5 {[%clk 0:00:15.9]} 69... Qg7 {[%clk 0:00:25]}
70. Rf6 {[%clk 0:00:13.1]} 70... Kc7 {[%clk 0:00:22.3]} 71. Bd3 {[%clk
0:00:13.4]} 71... Qg5 {[%clk 0:00:21.1]} 72. Kc2 {[%clk 0:00:13.4]} 72... Qg7
{[%clk 0:00:20.3]} 73. Qf4 {[%clk 0:00:12]} 73... Qh8 {[%clk 0:00:19.1]} 74. f3
{[%clk 0:00:12.3]} 74... Qg7 {[%clk 0:00:19.3]} 75. Rf8 {[%clk 0:00:11.8]} 75...
Re8 {[%clk 0:00:18.2]} 76. Rf7+ {[%clk 0:00:11.6]} 76... Qxf7 {[%clk 0:00:15.4]}
77. Qxf7+ {[%clk 0:00:12.5]} 77... R8e7 {[%clk 0:00:16.3]} 78. Qf6 {[%clk
0:00:13]} 78... Rf7 {[%clk 0:00:14.3]} 79. Qxf7+ {[%clk 0:00:13]} 1-0